bitfinex-derivatives/quotes_ETHF0:USTF0_20260118
["timestamp","ask_amount","ask_price","bid_price","bid_amount"]
[1768762934537,0.94258153,3366.2,3365.1,0.14863]
[1768762934840,0.94020381,3366.1,3365.1,0.14863]
[1768762937534,0.94020381,3366.1,3365.1,3.6527808]
[1768762937734,0.94020381,3366.0,3365.1,3.6527808]
[1768762937942,0.94020381,3365.9,3365.1,3.6527808]
[1768762938143,1.685,3366.6,3365.1,3.6527808]
[1768762938333,0.94183293,3366.5,3365.1,3.6527808]
[1768762938535,0.94183293,3366.4,3365.1,3.6527808]
[1768762938729,0.94183293,3366.3,3365.1,3.6527808]
[1768762938936,0.94183293,3366.2,3365.1,3.6527808]
[1768762939140,0.94183293,3366.1,3365.1,3.6527808]
[1768762939341,0.94183293,3366.0,3365.1,3.6527808]
[1768762939530,1.685,3366.7,3365.1,3.6527808]
[1768762939734,0.94187307,3366.6,3365.1,3.6527808]
[1768762940040,0.94187307,3366.5,3365.1,3.6527808]
[1768762940237,0.94187307,3366.4,3365.1,3.6527808]
[1768762940440,0.94187307,3366.3,3365.1,3.6527808]
[1768762940642,0.94187307,3366.2,3365.1,3.6527808]
[1768762940943,0.94187307,3366.1,3365.1,3.6527808]
[1768762941243,0.94187307,3366.0,3365.1,3.6527808]
[1768762941434,1.685,3366.7,3365.1,3.6527808]
[1768762941634,0.94188272,3366.6,3365.1,3.6527808]
[1768762941844,0.94188272,3366.5,3365.1,3.6527808]
[1768762942142,0.94188272,3366.4,3365.1,3.6527808]
[1768762942338,0.94188272,3366.3,3365.1,3.6527808]
[1768762942544,0.94188272,3366.2,3365.1,3.6527808]
[1768762942738,0.94188272,3366.1,3365.1,3.6527808]
[1768762942943,0.94188272,3366.0,3365.1,3.6527808]
[1768762943146,1.685,3366.7,3365.1,3.6527808]
[1768762943342,0.94161874,3366.6,3365.1,3.6527808]
[1768762943642,0.94161874,3366.5,3365.1,3.6527808]
[1768762943846,0.94161874,3366.4,3365.1,3.6527808]
[1768762944037,0.94161874,3366.3,3365.1,3.6527808]
[1768762944234,0.94161874,3366.2,3365.1,3.6527808]
[1768762944444,0.94161874,3366.1,3365.1,3.6527808]
[1768762944647,0.94161874,3366.0,3365.1,3.6527808]
[1768762944850,1.685,3366.7,3365.1,3.6527808]
[1768762945049,0.94174772,3366.6,3365.1,3.6527808]
[1768762945248,0.94174772,3366.5,3365.1,3.6527808]
[1768762945439,0.94174772,3366.4,3365.1,3.6527808]
[1768762945640,0.94174772,3366.3,3365.1,3.6527808]
[1768762945844,0.94174772,3366.2,3365.1,3.6527808]
[1768762946147,0.94174772,3366.1,3365.1,3.6527808]
[1768762946346,0.94174772,3366.0,3365.1,3.6527808]
[1768762946550,1.685,3366.7,3365.1,3.6527808]
[1768762946748,0.94194939,3366.6,3365.1,3.6527808]
[1768762946944,0.94194939,3366.5,3365.1,3.6527808]
[1768762947149,0.94194939,3366.4,3365.3,3.51865796]
[1768762947350,0.94194939,3366.3,3365.3,3.51865796]
[1768762947550,0.94194939,3366.2,3365.3,3.51865796]
[1768762947748,0.94194939,3366.1,3365.3,3.51865796]
[1768762947942,0.94194939,3366.0,3365.3,3.51865796]
[1768762948144,2.62758153,3366.7,3365.3,3.51865796]
[1768762948340,0.94199158,3366.6,3365.3,3.51865796]
[1768762948544,0.94199158,3366.5,3365.3,3.51865796]
[1768762948744,0.94199158,3366.4,3365.3,3.51865796]
[1768762948940,0.94199158,3366.3,3365.3,3.51865796]
[1768762949150,0.94199158,3366.2,3365.3,3.51865796]
[1768762949348,0.94199158,3366.1,3365.3,3.51865796]
[1768762949549,2.62758153,3366.7,3365.3,3.51865796]
[1768762949849,0.94200325,3366.6,3365.3,3.51865796]
[1768762950042,0.94200325,3366.5,3365.3,3.51865796]
[1768762950246,0.94200325,3366.4,3365.3,3.51865796]
[1768762950445,0.94200325,3366.3,3365.3,3.51865796]
[1768762950647,0.94200325,3366.2,3365.3,3.51865796]
[1768762950842,0.94200325,3366.1,3365.3,3.51865796]
[1768762951056,2.62758153,3366.7,3365.3,3.51865796]
[1768762951258,0.94191726,3366.6,3365.3,3.51865796]
[1768762951558,0.94191726,3366.5,3365.3,3.51865796]
[1768762951754,0.94191726,3366.4,3365.3,3.51865796]
[1768762951953,0.94191726,3366.3,3365.3,3.51865796]
[1768762952151,0.94191726,3366.2,3365.3,3.51865796]
[1768762952352,0.94191726,3366.1,3365.3,3.51865796]
[1768762952554,2.62758153,3366.7,3365.3,3.51865796]
[1768762952745,0.94190518,3366.6,3365.3,3.51865796]
[1768762952949,0.94190518,3366.5,3365.3,3.51865796]
[1768762953155,0.94190518,3366.4,3365.3,3.66727796]
[1768762953457,0.94190518,3366.3,3365.3,3.66727796]
[1768762953657,0.94190518,3366.2,3365.3,3.66727796]
[1768762953850,0.94190518,3366.1,3365.3,3.66727796]
[1768762954051,2.62758153,3366.7,3365.3,3.66727796]
[1768762954355,0.94188876,3366.6,3365.3,3.66727796]
[1768762954658,0.94188876,3366.5,3365.3,3.66727796]
[1768762954859,0.94188876,3366.4,3365.3,3.66727796]
[1768762955061,0.94188876,3366.3,3365.3,3.66727796]
[1768762955357,0.94188876,3366.2,3365.3,3.66727796]
[1768762955564,0.94188876,3366.1,3365.3,3.66727796]
[1768762955765,2.62758153,3366.7,3365.3,3.66727796]
[1768762956064,0.94189495,3366.6,3365.3,3.66727796]
[1768762956266,0.94189495,3366.5,3365.3,3.66727796]
[1768762956457,0.94189495,3366.4,3365.3,3.66727796]
[1768762956763,0.94189495,3366.3,3365.3,3.66727796]
[1768762956968,0.94189495,3366.2,3365.3,3.66727796]
[1768762957259,0.94189495,3366.1,3365.3,3.66727796]
[1768762957465,1.685,3366.7,3365.3,3.66727796]
[1768762957665,0.94258153,3366.5,3365.3,3.66727796]
[1768762957862,0.9419633,3366.4,3365.3,3.66727796]
[1768762958162,0.9419633,3366.3,3365.3,3.66727796]
[1768762958366,0.9419633,3366.2,3365.3,0.14862]
[1768762958663,0.9419633,3366.1,3365.3,0.14862]
[1768762958852,0.94258153,3366.5,3365.3,0.14862]
[1768762959056,0.9420207,3366.4,3365.3,0.14862]
[1768762959251,0.9420207,3366.3,3365.3,0.14862]
[1768762959565,0.9420207,3366.2,3365.3,0.14862]
[1768762959864,0.9420207,3366.1,3365.3,0.14862]
[1768762960063,0.94258153,3366.5,3365.3,0.14862]
[1768762960364,0.94206941,3366.4,3365.3,0.14862]
[1768762960566,0.94206941,3366.3,3365.3,0.14862]
[1768762960861,0.94206941,3366.2,3365.3,0.14862]
[1768762961061,0.94206941,3366.1,3365.3,0.14862]
[1768762961262,0.94258153,3366.5,3365.3,0.14862]
[1768762961463,0.9420811,3366.4,3365.3,0.14862]
[1768762961664,0.9420811,3366.3,3365.3,0.14862]
[1768762961864,0.9420811,3366.2,3365.3,0.14862]
[1768762962166,0.9420811,3366.1,3365.3,0.14862]
[1768762962461,0.94258153,3366.5,3365.3,0.14862]
[1768762962652,0.94209784,3366.4,3365.3,0.14862]
[1768762962849,0.94209784,3366.3,3365.3,0.14862]
[1768762963053,0.94209784,3366.2,3365.3,0.14862]
[1768762963258,0.94209784,3366.1,3365.3,0.14862]
[1768762963458,0.94258153,3366.5,3365.3,0.14862]
[1768762963655,0.94211839,3366.4,3365.3,0.14862]
[1768762963850,0.94211839,3366.3,3365.3,0.14862]
[1768762964056,0.94211839,3366.2,3365.3,0.14862]
[1768762964261,0.94211839,3366.1,3365.3,0.14862]
[1768762964457,0.94258153,3366.5,3365.3,0.14862]
[1768762964660,0.94214806,3366.4,3365.3,0.14862]
[1768762964864,0.94214806,3366.3,3365.3,0.14862]
[1768762965065,0.94214806,3366.2,3365.3,0.14862]
[1768762965366,0.94214806,3366.1,3365.3,0.14862]
[1768762965566,0.94214806,3366.0,3365.3,0.14862]
[1768762965767,0.94258153,3366.3,3365.3,0.14862]
[1768762966067,0.94222895,3366.2,3365.3,0.14862]
[1768762966363,0.94222895,3366.1,3365.3,0.14862]
[1768762966564,0.94222895,3366.0,3365.3,0.14862]
[1768762966764,0.94258153,3366.3,3365.3,0.14862]
[1768762967063,0.94229407,3366.2,3365.3,0.14862]
[1768762967266,0.94229407,3366.1,3365.3,0.14862]
[1768762967465,0.94229407,3366.0,3365.3,0.14862]
[1768762967665,0.94258153,3366.3,3365.3,0.14862]
[1768762967865,0.94237483,3366.2,3365.3,0.14862]
[1768762968066,0.94258153,3365.9,3364.6,0.14865]
[1768762968269,0.94237483,3365.8,3364.8,3.52366377]
[1768762968465,0.94237483,3365.7,3365.0,3.52366377]
[1768762968665,1.687,3366.5,3365.0,3.52366377]
[1768762968969,0.94225704,3366.4,3365.0,3.52366377]
[1768762969163,0.94225704,3366.3,3365.1,3.52365377]
[1768762969365,0.94225704,3366.2,3365.1,3.52365377]
[1768762969566,0.94225704,3366.1,3365.1,3.52365377]
[1768762969872,0.94225704,3366.0,3365.1,3.52365377]
[1768762970065,0.94225704,3365.9,3365.1,3.52365377]
[1768762970268,0.94225704,3365.8,3365.1,3.52365377]
[1768762970463,1.687,3366.6,3365.1,3.52365377]
[1768762970769,0.94211905,3366.5,3365.1,3.52365377]
[1768762970969,0.94245514,3366.3,3365.1,3.52365377]
[1768762971159,0.94211905,3366.2,3365.1,3.52365377]
[1768762971763,0.94211905,3366.1,3365.1,3.52365377]
[1768762971963,0.94211905,3366.0,3365.1,3.52365377]
[1768762972163,0.94211905,3365.9,3365.1,3.52365377]
[1768762972365,0.94245514,3366.4,3365.1,3.52365377]
[1768762972563,0.9430921,3366.3,3365.1,3.52365377]
[1768762972762,0.9430921,3366.2,3365.1,3.52365377]
[1768762972963,1.88554724,3366.1,3365.1,3.52365377]
[1768762973162,0.9430921,3366.0,3365.1,3.52365377]
[1768762973371,0.9430921,3365.9,3365.1,3.52365377]
[1768762973571,0.94245514,3366.1,3365.1,3.52365377]
[1768762973769,0.94308153,3366.0,3365.1,3.52365377]
[1768762973970,0.94308153,3365.9,3365.1,3.52365377]
[1768762974272,0.94245514,3366.1,3365.1,3.52365377]
[1768762974472,0.94307187,3366.0,3365.1,3.52365377]
[1768762974673,0.94307187,3365.9,3365.1,3.52365377]
[1768762974872,0.94245514,3366.1,3365.1,3.52365377]
[1768762975173,0.94307206,3366.0,3365.1,3.52365377]
[1768762975372,0.94307206,3365.9,3365.1,3.52365377]
[1768762975569,0.94245514,3366.1,3365.1,3.52365377]
[1768762975768,0.94306183,3366.0,3365.1,3.52365377]
[1768762975971,0.94306183,3365.9,3365.1,3.52365377]
[1768762976269,0.94245514,3366.2,3365.1,3.52365377]
[1768762976569,0.94305191,3366.1,3365.1,3.52365377]
[1768762976759,0.94305191,3366.0,3365.1,3.52365377]
[1768762976962,0.94305191,3365.9,3365.1,3.52365377]
[1768762977162,0.94245514,3366.2,3365.1,3.52365377]
[1768762977370,0.94304098,3366.1,3365.1,3.52365377]
[1768762977572,0.94304098,3366.0,3365.1,3.52365377]
[1768762977770,0.94304098,3365.9,3365.1,3.52365377]
[1768762977971,0.94245514,3366.2,3365.1,3.52365377]
[1768762978171,0.94304098,3366.1,3365.1,3.52365377]
[1768762978371,0.94304098,3366.0,3365.1,3.52365377]
[1768762978571,0.94304098,3365.9,3365.1,3.52365377]
[1768762978871,0.94245514,3366.3,3365.1,3.52365377]
[1768762979072,0.94303022,3366.2,3365.1,3.52365377]
[1768762979270,0.94303022,3366.1,3365.1,3.52365377]
[1768762979470,0.94303022,3366.0,3365.1,3.52365377]
[1768762979671,0.94303022,3365.9,3365.1,3.52365377]
[1768762979870,0.94245514,3366.3,3365.1,3.52365377]
[1768762979871,1.687,3366.6,3365.1,3.52365377]
[1768762980068,0.94302992,3366.5,3365.1,3.52365377]
[1768762980274,0.94245514,3366.2,3365.1,3.52365377]
[1768762980475,0.94302992,3366.1,3365.1,3.52365377]
[1768762980663,0.94302992,3366.0,3365.1,3.52365377]
[1768762980862,0.94245514,3366.2,3365.1,3.52365377]
[1768762981064,0.94301897,3366.1,3365.1,3.52365377]
[1768762981275,2.12330863,3366.9,3365.1,3.52365377]
[1768762981475,0.94245514,3366.3,3365.1,3.52365377]
[1768762982679,2.12330863,3366.9,3365.2,3.53352777]
[1768762982878,0.94245514,3366.6,3365.2,3.53352777]
[1768762983985,0.94245514,3366.7,3365.2,3.38489777]
[1768762985187,0.94245514,3366.1,3364.6,3.38489777]
[1768762985385,0.94245514,3365.8,3364.9,3.53353777]
[1768762985587,0.94245514,3365.5,3364.5,3.38489777]
[1768762985776,0.94245514,3365.5,3364.2,0.14867]
[1768762985981,0.94245514,3365.5,3364.2,3.53356777]
[1768762986483,0.94245514,3365.3,3364.2,3.53356777]
[1768762987073,0.94245514,3365.0,3364.2,0.14867]
[1768762990687,0.94245514,3364.7,3364.2,0.14867]
[1768762990882,0.94245514,3364.7,3364.1,0.00241442]
[1768762991385,0.94245514,3364.9,3364.1,0.00241442]
[1768762992089,10.396,3365.8,3364.1,3.38731219]
[1768762992288,0.94245514,3365.4,3364.1,3.38731219]
[1768762992992,0.94245514,3365.8,3364.4,0.94245514]
[1768762993193,0.94245514,3365.8,3364.4,4.32735291]
[1768762993397,0.93656156,3365.7,3364.4,4.32735291]
[1768762993691,0.93656156,3365.6,3364.4,4.32735291]
[1768762993892,0.94245514,3365.8,3364.5,3.38489777]
[1768762994087,0.93652646,3365.7,3364.5,3.38489777]
[1768762994293,0.94245514,3365.8,3364.5,3.38489777]
[1768762994483,0.93652787,3365.7,3364.5,3.38489777]
[1768762994684,0.94245514,3365.8,3364.5,3.38489777]
[1768762994894,0.9365318,3365.7,3364.5,3.38489777]
[1768762995092,0.94245514,3365.5,3364.5,3.38489777]
[1768762995494,0.94245514,3365.8,3364.5,3.38489777]
[1768762995794,0.93655637,3365.7,3364.5,3.38489777]
[1768762995988,0.94245514,3365.8,3364.5,3.38489777]
[1768762996194,0.93657634,3365.7,3364.5,3.38489777]
[1768762996394,0.94245514,3365.8,3364.5,3.38489777]
[1768762996582,0.93658895,3365.7,3364.5,3.38489777]
[1768762996786,0.94245514,3365.8,3364.5,3.38489777]
[1768762996985,0.93658993,3365.7,3364.5,3.38489777]
[1768762997286,0.94245514,3365.8,3364.5,3.38489777]
[1768762997492,0.94245514,3365.6,3364.5,3.38489777]
[1768762998492,0.94245514,3365.2,3364.4,0.14866]
[1768762999087,0.94245514,3365.4,3364.4,0.14866]
[1768762999797,0.94245514,3365.6,3364.4,3.53355777]
[1768763000994,0.94245514,3365.3,3364.4,0.14866]
[1768763002797,0.94245514,3365.1,3364.4,0.14866]
[1768763005904,3.44388649,3365.9,3364.1,0.00241442]
[1768763006115,0.94245514,3365.7,3364.1,4.56088754]
[1768763006304,0.9384157,3365.6,3364.1,4.56088754]
[1768763006803,0.9384157,3365.6,3364.2,3.61601798]
[1768763007003,0.9384157,3365.5,3364.3,0.94245514]
[1768763007212,0.9384157,3365.4,3364.3,0.94245514]
[1768763007507,0.94245514,3365.7,3364.3,0.94245514]
[1768763007701,0.93839986,3365.6,3364.3,0.94245514]
[1768763008001,0.93839986,3365.5,3364.3,0.94245514]
[1768763008302,0.93839986,3365.4,3364.3,0.94245514]
[1768763008500,0.94245514,3365.7,3364.3,0.94245514]
[1768763008698,0.93848525,3365.6,3364.3,0.94245514]
[1768763008898,0.93848525,3365.5,3364.3,0.94245514]
[1768763009102,0.93848525,3365.4,3364.3,0.94245514]
[1768763009406,0.94245514,3365.7,3364.3,0.94245514]
[1768763009601,0.93859462,3365.6,3364.2,3.61601798]
[1768763009802,0.93859462,3365.5,3364.2,4.55847312]
[1768763010100,0.93859462,3365.4,3364.2,4.55847312]
[1768763010301,0.94245514,3365.7,3364.2,4.55847312]
[1768763010502,0.93862528,3365.6,3364.2,4.55847312]
[1768763010695,0.93862528,3365.5,3364.2,4.55847312]
[1768763010899,0.93862528,3365.4,3364.2,4.55847312]
[1768763011106,0.94245514,3365.7,3364.2,4.55847312]
[1768763011408,0.93862547,3365.6,3364.2,4.55847312]
[1768763011604,0.93862547,3365.5,3364.2,4.55847312]
[1768763011806,0.93862547,3365.4,3364.2,4.55847312]
[1768763012010,0.94245514,3365.7,3364.2,4.55847312]
[1768763012201,0.93878445,3365.6,3364.2,4.55847312]
[1768763012402,0.93878445,3365.5,3364.2,4.55847312]
[1768763012604,0.93878445,3365.4,3364.2,4.55847312]
[1768763012915,0.93878445,3365.3,3364.2,4.55847312]
[1768763013113,0.94245514,3365.7,3364.2,4.55847312]
[1768763013312,0.93898634,3365.6,3364.2,4.55847312]
[1768763013512,0.93898634,3365.5,3364.2,4.55847312]
[1768763013813,0.93898634,3365.4,3364.2,4.55847312]
[1768763014113,0.93898634,3365.3,3364.2,4.55847312]
[1768763014314,0.94245514,3365.7,3364.2,4.55847312]
[1768763014508,0.93977063,3365.6,3364.2,4.55847312]
[1768763014704,1.88222577,3365.5,3364.2,3.61601798]
[1768763015014,0.93977063,3365.4,3364.2,3.61601798]
[1768763016020,1.88222577,3365.4,3364.2,3.61601798]
[1768763016314,0.93977063,3365.3,3364.2,3.61601798]
[1768763021405,0.93977063,3365.2,3364.2,3.61601798]
[1768763021609,0.94245514,3365.5,3364.2,3.61601798]
[1768763021815,0.94069577,3365.4,3364.3,3.41838886]
[1768763022017,0.94069577,3365.3,3364.3,3.41838886]
[1768763022318,0.94069577,3365.2,3364.3,3.41838886]
[1768763022517,0.94245514,3365.5,3364.3,3.41838886]
[1768763022711,0.94075611,3365.4,3364.3,3.41838886]
[1768763022910,0.94075611,3365.3,3364.3,3.41838886]
[1768763023112,0.94075611,3365.2,3364.3,3.41838886]
[1768763023312,0.94245514,3365.5,3364.3,3.41838886]
[1768763023520,0.9407604,3365.4,3364.3,3.41838886]
[1768763023721,0.9407604,3365.3,3364.3,3.41838886]
[1768763023910,0.9407604,3365.2,3364.3,3.41838886]
[1768763024111,0.94245514,3365.5,3364.3,3.41838886]
[1768763024320,0.9407604,3365.4,3364.3,3.41838886]
[1768763024519,0.9407604,3365.3,3364.3,3.41838886]
[1768763024715,0.9407604,3365.2,3364.3,3.41838886]
[1768763024923,0.94245514,3365.5,3364.3,3.41838886]
[1768763025215,0.94081596,3365.4,3364.3,3.41838886]
[1768763025420,0.94081596,3365.3,3364.3,3.41838886]
[1768763025620,0.94081596,3365.2,3364.3,3.41838886]
[1768763025921,0.94245514,3365.5,3364.3,3.41838886]
[1768763026122,0.94087599,3365.4,3364.3,3.41838886]
[1768763026322,0.94087599,3365.3,3364.3,3.41838886]
[1768763026516,0.94087599,3365.2,3364.3,3.41838886]
[1768763026718,0.94245514,3365.5,3364.3,3.41838886]
[1768763027019,0.94092531,3365.4,3364.3,3.41838886]
[1768763027221,0.94092531,3365.3,3364.3,3.41838886]
[1768763027417,0.94092531,3365.2,3364.3,3.41838886]
[1768763027621,0.94245514,3365.4,3364.3,3.41838886]
[1768763027828,0.94099432,3365.3,3364.3,3.41838886]
[1768763028014,0.94099432,3365.2,3364.3,3.41838886]
[1768763028216,0.94245514,3365.4,3364.3,3.41838886]
[1768763028514,0.94106113,3365.3,3364.3,3.41838886]
[1768763028711,0.94106113,3365.2,3364.3,3.41838886]
[1768763028914,0.94245514,3365.4,3364.3,3.41838886]
[1768763029112,0.94106113,3365.3,3364.3,3.41838886]
[1768763029318,0.94106113,3365.2,3364.3,3.41838886]
[1768763029522,0.94245514,3365.4,3364.3,3.41838886]
[1768763029717,0.94108361,3365.3,3364.3,0.14867]
[1768763029918,0.94108361,3365.2,3364.3,0.14867]
[1768763030224,0.94245514,3365.3,3364.3,0.14867]
[1768763030411,0.94111388,3365.2,3364.3,0.14867]
[1768763030615,0.94245514,3365.3,3364.3,0.14867]
[1768763030819,0.9411131,3365.2,3364.3,0.14867]
[1768763031118,3.24583578,3365.6,3364.3,0.14867]
[1768763031320,0.94111354,3365.5,3364.3,0.14867]
[1768763031518,0.94111354,3365.4,3364.3,0.14867]
[1768763031723,0.94111354,3365.3,3364.3,0.14867]
[1768763031924,0.94111354,3365.2,3364.3,0.14867]
[1768763032117,0.94111354,3365.1,3364.3,0.14867]
[1768763032317,3.24583578,3365.6,3364.3,0.14867]
[1768763032517,0.94206222,3365.5,3364.3,0.14867]
[1768763032722,0.94206222,3365.4,3364.3,0.14867]
[1768763032922,0.94206222,3365.3,3364.3,0.14867]
[1768763033118,0.94206222,3365.2,3364.3,0.14867]
[1768763033321,0.94208217,3365.1,3364.3,0.14867]
[1768763033521,3.38432226,3365.6,3364.3,0.14867]
[1768763033718,0.94208427,3365.5,3364.3,0.14867]
[1768763033918,0.94208427,3365.4,3364.3,0.14867]
[1768763034217,0.94208427,3365.3,3364.3,0.14867]
[1768763034418,0.94208427,3365.2,3364.3,0.14867]
[1768763034616,0.94208427,3365.1,3364.3,0.14867]
[1768763034821,3.38432226,3365.6,3364.3,0.14867]
[1768763035021,0.94210874,3365.5,3364.3,0.14867]
[1768763035226,0.94210874,3365.4,3364.3,0.14867]
[1768763035425,0.94210874,3365.3,3364.3,0.14867]
[1768763035621,0.94210874,3365.2,3364.3,0.14867]
[1768763035821,0.94210874,3365.1,3364.3,0.14867]
[1768763036022,3.38432226,3365.6,3364.3,0.14867]
[1768763036226,0.94213487,3365.5,3364.3,0.14867]
[1768763036426,0.94213487,3365.4,3364.3,0.14867]
[1768763036629,0.94213487,3365.3,3364.3,0.14867]
[1768763036818,0.94213487,3365.2,3364.3,0.14867]
[1768763037118,0.94213487,3365.1,3364.3,0.14867]
[1768763037316,3.38432226,3365.6,3364.3,0.14867]
[1768763037529,0.9423375,3365.5,3364.3,0.14867]
[1768763037731,0.9423375,3365.4,3364.3,0.14867]
[1768763037925,0.9423375,3365.3,3364.3,0.14867]
[1768763038122,0.9423375,3365.2,3364.3,0.14867]
[1768763038425,0.9423375,3365.1,3364.3,0.14867]
[1768763038731,3.38432226,3365.6,3364.3,0.14867]
[1768763038931,0.94234556,3365.5,3364.3,0.14867]
[1768763039132,0.94234556,3365.4,3364.3,0.14867]
[1768763039333,0.94234556,3365.3,3364.3,0.14867]
[1768763039526,0.94234556,3365.2,3364.3,0.14867]
[1768763039726,0.94234556,3365.1,3364.3,0.14867]
[1768763039928,3.38432226,3365.6,3364.3,0.14867]
[1768763040135,0.94235218,3365.5,3364.3,0.14867]
[1768763040322,0.94235218,3365.4,3364.3,0.14867]
[1768763040526,0.94235218,3365.3,3364.3,0.14867]
[1768763040731,0.94235218,3365.2,3364.3,0.14867]
[1768763040934,3.38432226,3365.6,3364.3,0.14867]
[1768763041131,0.9423566,3365.5,3364.3,0.14867]
[1768763041329,0.9423566,3365.4,3364.3,0.14867]
[1768763041631,0.9423566,3365.3,3364.3,0.14867]
[1768763041842,0.9423566,3365.2,3364.3,0.14867]
[1768763042134,3.38432226,3365.6,3364.3,0.14867]
[1768763042330,0.94236154,3365.5,3364.3,0.14867]
[1768763042531,0.94236154,3365.4,3364.7,0.14865]
[1768763042835,3.38432226,3366.0,3364.7,0.14865]
[1768763043033,0.94227758,3365.9,3364.8,0.14864]
[1768763043230,0.94227758,3365.8,3365.1,0.14863]
[1768763043535,1.688,3366.7,3365.1,3.66525734]
[1768763043736,0.94156815,3366.6,3365.1,3.66525734]
[1768763043928,0.94156815,3366.5,3365.1,3.66525734]
[1768763044128,0.94156815,3366.4,3365.1,3.66525734]
[1768763044428,0.94156815,3366.3,3365.1,3.66525734]
[1768763044627,0.94156815,3366.2,3365.1,3.66525734]
[1768763044926,0.94156815,3366.1,3365.1,3.66525734]
[1768763045127,1.688,3366.7,3365.1,3.66525734]
[1768763045436,0.94089582,3366.6,3365.1,3.66525734]
[1768763045735,0.94089582,3366.5,3365.1,3.66525734]
[1768763045930,0.94089582,3366.4,3365.1,3.66525734]
[1768763046130,0.94089582,3366.3,3365.1,3.66525734]
[1768763046434,0.94089582,3366.2,3365.1,3.66525734]
[1768763046634,0.94089582,3366.2,3364.5,0.94298314]
[1768763046635,1.688,3366.7,3365.2,3.66525734]
[1768763046829,0.94008411,3366.6,3365.2,3.66525734]
[1768763047136,0.94008411,3366.5,3365.2,3.66525734]
[1768763047335,0.94008411,3366.4,3365.2,3.66525734]
[1768763047532,1.688,3366.7,3365.2,3.66525734]
[1768763047533,0.94008411,3366.3,3365.2,3.66525734]
[1768763047739,1.688,3366.7,3365.2,3.66525734]
[1768763047935,0.93979935,3366.6,3365.2,3.66525734]
[1768763048139,0.93979935,3366.5,3365.2,3.66525734]
[1768763048326,0.93979935,3366.4,3365.2,3.66525734]
[1768763048529,0.93979935,3366.3,3365.2,3.66525734]
[1768763048736,1.688,3366.7,3365.2,3.66525734]
[1768763048930,0.93957253,3366.6,3365.2,3.66525734]
[1768763049130,0.93957253,3366.5,3365.2,3.66525734]
[1768763049325,0.93957253,3366.4,3365.2,3.66525734]
[1768763049530,0.93957253,3366.3,3365.2,3.66525734]
[1768763049730,1.688,3366.7,3365.2,3.66525734]
[1768763049931,0.93938607,3366.6,3365.2,3.66525734]
[1768763050130,0.93938607,3366.5,3365.2,3.66525734]
[1768763050330,0.93938607,3366.4,3365.2,3.66525734]
[1768763050534,0.93938607,3366.3,3365.2,3.66525734]
[1768763050837,1.688,3366.7,3365.2,3.66525734]
[1768763051147,0.93923601,3366.6,3365.2,3.66525734]
[1768763051326,0.93923601,3366.5,3365.2,3.66525734]
[1768763051530,0.93923601,3366.4,3365.2,3.66525734]
[1768763051730,1.688,3366.7,3365.2,3.66525734]
[1768763051932,0.93911436,3366.6,3365.2,3.66525734]
[1768763052134,0.93911436,3366.5,3365.2,3.66525734]
[1768763052333,0.93911436,3366.4,3365.2,3.66525734]
[1768763052534,1.688,3366.7,3365.2,3.66525734]
[1768763052742,0.93900395,3366.6,3365.2,3.66525734]
[1768763052942,0.93900395,3366.5,3365.2,3.66525734]
[1768763053142,0.93900395,3366.4,3365.2,3.66525734]
[1768763053341,1.688,3366.7,3365.2,3.66525734]
[1768763053641,0.93891575,3366.6,3365.2,3.66525734]
[1768763053839,0.93891575,3366.5,3365.2,3.66525734]
[1768763054038,1.688,3366.7,3365.2,3.66525734]
[1768763054039,0.93891575,3366.4,3365.2,3.66525734]
[1768763054344,1.688,3366.7,3365.2,3.66525734]
[1768763054647,0.93884767,3366.6,3365.2,3.66525734]
[1768763054850,0.93884767,3366.5,3365.2,3.66525734]
[1768763055039,0.93884767,3366.4,3365.2,3.66525734]
[1768763055231,6.0153054,3366.7,3365.2,3.66525734]
[1768763055431,4.32312422,3366.6,3365.2,0.14863]
[1768763055637,4.32312422,3366.5,3365.2,0.14863]
[1768763055851,0.93880196,3366.4,3365.2,0.14863]
[1768763062550,0.93880196,3366.4,3365.4,0.14862]
[1768763062849,1.687,3366.7,3365.4,0.14862]
[1768763063045,0.93690285,3366.6,3365.4,0.14862]
[1768763063245,1.687,3366.7,3365.4,0.14862]
[1768763063446,0.93694429,3366.6,3365.4,0.14862]
[1768763063647,1.687,3366.7,3365.4,0.14862]
[1768763063847,0.9369441,3366.6,3365.4,0.14862]
[1768763064037,1.687,3366.7,3365.4,0.14862]
[1768763064237,0.93694373,3366.6,3365.4,0.14862]
[1768763064437,0.93694373,3366.5,3365.4,0.14862]
[1768763064641,1.687,3366.7,3365.4,0.14862]
[1768763064846,0.93702979,3366.6,3365.4,0.14862]
[1768763065152,0.93702979,3366.5,3365.4,0.14862]
[1768763065358,1.687,3366.7,3365.4,0.14862]
[1768763065545,0.93715034,3366.6,3365.4,0.14862]
[1768763065838,0.93715034,3366.5,3365.4,0.14862]
[1768763066044,1.687,3366.7,3365.4,0.14862]
[1768763066246,0.93715034,3366.6,3365.4,0.14862]
[1768763066447,0.93715034,3366.5,3365.4,0.14862]
[1768763066650,1.687,3366.7,3365.4,0.14862]
[1768763066851,0.93730746,3366.6,3365.4,0.14862]
[1768763067051,0.93730746,3366.5,3365.4,0.14862]
[1768763067253,1.687,3366.7,3365.4,0.14862]
[1768763067460,0.93750827,3366.6,3365.4,0.14862]
[1768763067646,0.93750827,3366.5,3365.4,0.14862]
[1768763067846,1.687,3366.7,3365.4,0.14862]
[1768763068056,0.93750732,3366.6,3365.4,0.14862]
[1768763068252,0.93750732,3366.5,3365.4,0.14862]
[1768763068456,1.687,3366.7,3365.4,0.14862]
[1768763068659,0.9377565,3366.6,3365.4,0.14862]
[1768763068951,0.9377565,3366.5,3365.4,0.14862]
[1768763069157,1.687,3366.7,3365.4,0.14862]
[1768763069355,0.93807229,3366.6,3365.4,0.14862]
[1768763069657,0.93807229,3366.5,3365.4,0.14862]
[1768763069860,0.93807229,3366.4,3365.4,0.14862]
[1768763070154,1.687,3366.7,3365.4,0.14862]
[1768763070460,0.93807929,3366.6,3365.4,0.14862]
[1768763070645,0.93807929,3366.5,3365.4,0.14862]
[1768763070848,0.93807929,3366.4,3365.4,0.14862]
[1768763071047,1.687,3366.7,3365.4,0.14862]
[1768763071257,0.9380858,3366.6,3365.4,0.14862]
[1768763071457,0.9380858,3366.5,3365.4,0.14862]
[1768763071646,0.9380858,3366.4,3365.4,0.14862]
[1768763071849,3.48867601,3366.6,3365.4,0.14862]
[1768763072062,0.9385238,3366.5,3365.4,0.14862]
[1768763072260,0.9385238,3366.4,3365.4,0.14862]
[1768763072458,0.9385238,3366.3,3365.4,0.14862]
[1768763072659,3.48867601,3366.6,3365.4,0.14862]
[1768763072858,0.93920481,3366.5,3365.4,0.14862]
[1768763073160,0.93920481,3366.4,3365.4,0.14862]